Workbook

Sheet берізка
M1: Додаток до листа
M2: від ________ 2018 № ______
B3: ІНФОРМАЦІЯ про надходження і використання благодійних пожертв від фізичних та юридичних осіб ___Київський міський будинок дитини "Берізка"___за__ІІI__квартал__2019___року
A4: найменування закладу охорони здоров′я
A5: № пп | B5: Найменування юридичної особи (або позначення фізичної особи) | C5: Благодійні пожертви, що були отримані закладом охорони здоров'я від фізичних та юридичних осіб | F5: Всього отримано благодійних пожертв, тис. грн | G5: Використання закладом охорони здоров'я благодійних пожертв, отриманих у грошовій (товари і послуг) формі | K5: Залишок невикористаних грошових коштів, товарів та послуг на кінець звітного періоду, тис. грн
C6: В грошовій форм, тис. грн | D6: В натуральній формі (товари і послуги), тис. грн | E6: Перелік товарів і послуг в натуральній формі (канцтовари, господарські товари, будівельні товари, медикаменти та перев'язувальні матеріали, продукти харчування, м"який інвентар, основні засоби та інші) | G6: Напрямки використання у грошовій формі (стаття витрат) | H6: Сума, тис. грн | I6: Перелік використаних товарів та послуг у натуральній формі (канцтовари, господарські товари, будівельні товари, медикаменти та перев'язувальні матеріали, продукти харчування, м"який інвентар, основні засоби та інші) | J6: Сума, тис. грн
A7: 1 | B7: Фізична особа | C7: 62.1 | D7: 0.67 | E7: засоби гігієни | F7: =SUM(C7,D7) -> 62.77 | I7: засоби гігієни | J7: 0.35 | K7: =F7-J7-H7 -> 62.42
D8: 0.52 | E8: мякий інвентар | F8: =SUM(C8,D8) -> 0.52 | I8: мякий інвентар | K8: 0.52
D9: 5.4 | E9: електроприбори | F9: 5.4 | I9: електроприбори | K9: 5.4
D10: 28.95 | E10: засоби по догляду за малюками | F10: 28.95 | I10: засоби по догляду за малюками | J10: 18.03 | K10: 10.92
D11: 62.52 | E11: продукти харчування | F11: 62.52 | I11: продукти харчування | J11: 39.05 | K11: 23.47
A12: 2 | B12: ТОВ "Хіпп Україна" | D12: 28.07 | E12: продукти харчування | F12: 28.07 | I12: продукти харчування | J12: 15.97 | K12: 12.1
B13: Інтернет магазин Дубіду | D13: 2.32 | E13: продукти харчування | F13: =SUM(C13,D13) -> 2.32 | I13: продукти харчування | J13: 2.32 | K13: 0
A14: 3 | B14: БО "БФ паліативної допомоги "Лавіта" | D14: 4.32 | E14: засоби по догляду за малюками | F14: 4.32 | I14: засоби по догляду за малюками | J14: 4.32 | K14: 0
D15: 0.68 | E15: мякий інвентар | F15: 0.68 | I15: мякий інвентар | K15: 0.68
B16: ВСЬОГО по закладу | C16: =SUM(C7:C15) -> 62.1 | D16: =SUM(D7:D15) -> 133.45 | F16: 195.55 | H16: =SUM(H7:H15) -> 0 | J16: =SUM(J7:J15) -> 80.04 | K16: =F16-H16-J16 -> 115.51
B19: в.о. Головного лікаря | G19: Тихомирова К.О.
F20: (підпис) (ініціали і прізвище)
B21: Головний бухгалтер | G21: Вороніна І.В.
F22: (підпис) (ініціали і прізвище)

Sheet городецкого
M1: Додаток до листа
M2: від ________ 2018 № ______
B3: ІНФОРМАЦІЯ про надходження і використання благодійних пожертв від фізичних та юридичних осіб Київський міський будинок дитини ім. М.М. Городецького за ІІІ квартал 2019року
A4: найменування закладу охорони здоров′я
A5: № пп | B5: Найменування юридичної особи (або позначення фізичної особи) | C5: Благодійні пожертви, що були отримані закладом охорони здоров'я від фізичних та юридичних осіб | F5: Всього отримано благодійних пожертв, тис. грн | G5: Використання закладом охорони здоров'я благодійних пожертв, отриманих у грошовій (товари і послуг) формі | K5: Залишок невикористаних грошових коштів, товарів та послуг на кінець звітного періоду, тис. грн
C6: В грошовій форм, тис. грн | D6: В натуральній формі (товари і послуги), тис. грн | E6: Перелік товарів і послуг в натуральній формі (канцтовари, господарські товари, будівельні товари, медикаменти та перев'язувальні матеріали, продукти харчування, м"який інвентар, основні засоби та інші) | G6: Напрямки використання у грошовій формі (стаття витрат) | H6: Сума, тис. грн | I6: Перелік використаних товарів та послуг у натуральній формі (канцтовари, господарські товари, будівельні товари, медикаменти та перев'язувальні матеріали, продукти харчування, м"який інвентар, основні засоби та інші) | J6: Сума, тис. грн
B7: КО "Спілка Самаритян" | D7: 291.32 | E7: прод. харчування | F7: =SUM(C7,D7) -> 291.32 | G7: 2230 | I7: прод.харчування | J7: 291.32 | K7: 0
B8: Приватна особа | D8: 41.32 | E8: прод. харчування | F8: =SUM(C8,D8) -> 41.32 | G8: 2230 | I8: прод.харчування | J8: 41.32 | K8: 0
B9: Приватна особа | D9: 146.39 | E9: іграшки | F9: 146.39 | G9: 2210 | I9: іграшки | J9: 146.39
B10: Приватна особа | D10: 258 | E10: мякий інвентар | F10: =SUM(C10,D10) -> 258 | G10: 2210 | I10: мякий інвентар | J10: 258
B11: ВіДіАвтосітіКільцева | D11: 47.66 | E11: канц.товари | F11: 47.66 | G11: 2210 | I11: канц.товари | J11: 47.66
B12: Компанія "Агроскоп" | D12: 350.46 | E12: госп.матеріали | F12: 350.46 | G12: 2210 | I12: господ.матеріали | J12: 350.46
B13: ТОВ "Парі" | D13: 118.48 | E13: меблі | F13: 118.48 | G13: 2210 | I13: меблі | J13: 118.48
B14: Приватна особа | D14: 64.43 | E14: миючі засоби | F14: 64.43 | G14: 2210 | I14: миючі засоби | J14: 64.43
B15: Приватна особа | D15: 328.23 | E15: засоби гігієни | F15: 328.23 | G15: 2210 | I15: засоби гігієни | J15: 328.23
B16: Приватна особа | D16: 112.25 | E16: медикаменти | F16: 112.25 | G16: 2220 | I16: медикаменти | J16: 112.25
B17: ТОВ "Натане-Фарм" | D17: 20.46 | E17: медикаменти | F17: =SUM(C17,D17) -> 20.46 | G17: 2220 | I17: медикаменти | J17: 20.46
B18: ТОВ "Сильний бумеранг" | D18: 0.86 | E18: медикаменти | F18: =SUM(C18,D18) -> 0.86 | G18: 2220 | I18: медикаменти | J18: 0.86
B19: Приватна особа | C19: 596.621 | F19: 596.621 | G19: 2230 | H19: 480.04 | I19: прод.харчування
B20: Приватна особа | D20: 74.74 | E20: основні засоби | F20: 74.74 | G20: 3110 | I20: основні засоби | J20: 74.74
B21: БМФ "Санахант" | D21: 43.56 | E21: основні засоби | F21: 43.56 | G21: 3110 | I21: основні засоби | J21: 43.56
B22: ТОВ "Ромстал" | D22: 61.42 | E22: основні засоби | F22: 61.42 | G22: 3110 | I22: основні засоби | J22: 61.42
F23: 0
F24: 0
F25: 0
F26: 0
F27: 0
F28: 0
F29: 0
F30: 0
F31: 0
F32: 0
F33: 0
F34: 0
F35: 0
F36: 0
F37: 0
F38: 0
F39: 0
F40: 0
F41: 0
F42: 0
F43: 0
F44: 0
F45: 0
F46: 0
F47: 0
B48: ВСЬОГО по закладу | C48: =SUM(C7:C47) -> 596.621 | D48: =SUM(D7:D47) -> 1959.58 | F48: 2556.201 | H48: =SUM(H7:H47) -> 480.04 | J48: =SUM(J7:J47) -> 1959.58 | K48: =C48-H48 -> 116.581
B51: Керівник установи | G51: В.І. Федорова
F52: (підпис) (ініціали і прізвище)
B53: Головний бухгалтер | G53: М.Ю. Кінаш
F54: (підпис) (ініціали і прізвище)
